fUSD/lending_fUSD_20240912
["ID","MTS","AMOUNT","RATE_DAILY","PERIOD"]
[337851720,1726155038713,-1284.02209181,0.0001468,2]
[337851722,1726155038723,-3962.55749776,0.0001468,2]
[337851724,1726155038736,-3110.01716113,0.0001468,2]
[337851726,1726155038748,-799.5914014,0.0001468,2]
[337851728,1726155038759,-1893.1272692,0.0001468,2]
[337851730,1726155038779,-659.75132017,0.0001468,2]
[337851732,1726155038789,-500.0,0.0001468,2]
[337851734,1726155038800,-900.86035469,0.0001468,2]
[337851736,1726155038811,-56529.05701785,0.0001468,2]
[337851738,1726155038825,-612.18240239,0.0001468,2]
[337851741,1726155038838,-313.27,0.0001468,2]
[337851743,1726155038849,-254.99999,0.0001468,2]
[337851745,1726155038860,-888.51999758,0.0001468,2]
[337851750,1726155040422,-578.62987232,0.0001468,2]
[337851751,1726155040436,-1046.53945482,0.0001468,2]
[337851752,1726155040448,-1864.77512759,0.0001468,2]
[337851753,1726155040478,-623.57641515,0.0001468,2]
[337851754,1726155040489,-54607.70153551,0.0001468,2]
[337851755,1726155040500,-1655.88423,0.0001468,2]
[337851756,1726155040511,-250.0,0.0001468,2]
[337851757,1726155040521,-348972.49482023,0.0001468,2]
[337851758,1726155040644,-55347.29200001,0.0001468,2]
[337851759,1726155040674,-167784.456658,0.0001468,2]
[337851760,1726155040688,-31093.1616788,0.0001468,2]
[337851761,1726155040699,-1539.41274403,0.0001468,2]
[337851841,1726155044208,-2390.48874192,0.0001468,2]
[337851843,1726155044218,-158.018,0.00014686,2]
[337851845,1726155044228,-4180.52681818,0.0001469,2]
[337851847,1726155044243,-562.46798641,0.0001469,2]
[337851851,1726155044270,-517.61463644,0.0001469,2]
[337851854,1726155044297,-31598.83015897,0.0001469,2]
[337851856,1726155044307,-1189.5687,0.00014694,2]
[337851858,1726155044319,-6593.7318,0.00014694,2]
[337851860,1726155044328,-399.2139,0.00014694,2]
[337851862,1726155044338,-1422.4903,0.00014694,2]
[337851864,1726155044347,-1344.31329684,0.00014694,2]
[337851866,1726155044357,-191.05118717,0.00014694,2]
[337851867,1726155044367,-445.099957,0.000147,2]
[337851868,1726155044376,-314.7,0.000147,2]
[337851869,1726155044386,-999.18,0.000147,2]
[337851870,1726155044395,-1930.05,0.000147,2]
[337851871,1726155044405,-170.91818597,0.00014726,2]
[337851872,1726155044414,-662.492,0.00014727,2]
[337851873,1726155044423,-1901.0,0.00014727,2]
[337851874,1726155044434,-3343.0,0.00014727,2]
[337851875,1726155044444,-253.396,0.00014727,2]
[337851876,1726155044453,-805.0,0.00014727,2]
[337851877,1726155044462,-1198.95,0.00014727,2]
[337851878,1726155044471,-1921.0,0.00014727,2]
[337851879,1726155044480,-1145.0,0.00014727,2]
[337851880,1726155044489,-150.0,0.00014727,2]
[337851881,1726155044499,-9309.0,0.00014727,2]
[337851882,1726155044509,-5860.0,0.00014727,2]
[337851883,1726155044518,-1261.0,0.00014727,2]
[337851884,1726155044527,-624.0,0.00014727,2]
[337851885,1726155044537,-447.0,0.00014727,2]
[337851886,1726155044547,-1547.0,0.00014727,2]
[337851887,1726155044556,-1000.0,0.0001474,2]
[337851888,1726155044566,-1000.0,0.0001474,2]
[337851889,1726155044575,-1000.0,0.0001474,2]
[337851890,1726155044584,-1000.0,0.0001474,2]
[337851891,1726155044594,-1000.0,0.0001474,2]
[337851892,1726155044603,-1000.0,0.0001474,2]
[337851894,1726155044613,-1000.0,0.0001474,2]
[337851896,1726155044623,-1000.0,0.0001474,2]
[337851898,1726155044632,-1000.0,0.0001474,2]
[337851900,1726155044643,-1000.0,0.0001474,2]
[337851902,1726155044653,-1000.0,0.0001474,2]
[337851904,1726155044663,-1000.0,0.0001474,2]
[337851906,1726155044672,-1000.0,0.0001474,2]
[337851907,1726155044682,-1000.0,0.0001474,2]
[337851910,1726155044692,-1000.0,0.0001474,2]
[337851911,1726155044702,-1000.0,0.0001474,2]
[337851914,1726155044713,-1000.0,0.0001474,2]
[337851916,1726155044722,-1000.0,0.0001474,2]
[337851917,1726155044732,-1000.0,0.0001474,2]
[337851919,1726155044742,-1000.0,0.0001474,2]
[337851921,1726155044751,-1000.0,0.0001474,2]
[337851923,1726155044761,-1000.0,0.0001474,2]
[337851925,1726155044771,-1000.0,0.0001474,2]
[337851927,1726155044781,-1000.0,0.0001474,2]
[337851929,1726155044791,-1000.0,0.0001474,2]
[337851931,1726155044801,-1000.0,0.0001474,2]
[337851932,1726155044811,-1000.0,0.0001474,2]
[337851934,1726155044819,-1000.0,0.0001474,2]
[337851936,1726155044829,-1000.0,0.0001474,2]
[337851937,1726155044839,-1000.0,0.0001474,2]
[337851939,1726155044848,-212.0,0.0001475,2]
[337851941,1726155044858,-500.0,0.00014773,2]
[337851943,1726155044867,-500.0,0.00014773,2]
[337851945,1726155044877,-500.0,0.00014773,2]
[337851947,1726155044886,-514.5939,0.00014779,2]
[337851948,1726155044896,-85255.68293719,0.00014779,2]
[337851951,1726155044908,-4139.27659578,0.00014779,2]
[337851954,1726155044932,-283.59725779,0.00014779,2]
[337852117,1726155066288,150.0,0.00011898,2]
[337852118,1726155066313,150.0,0.00011898,2]
[337852119,1726155066340,15.33,0.00011898,2]
[337852120,1726155067597,-315.33,0.00014162,2]
[337852121,1726155114318,-250.0,0.00013759,2]
[337852122,1726155175684,150.0,0.00011164,2]
[337852123,1726155175703,150.0,0.00011164,2]
[337852124,1726155175723,150.0,0.00011164,2]
[337852125,1726155175744,50.0,0.00011164,2]
[337852126,1726155226120,-600.0,0.00013735,2]
[337852127,1726155226825,-200.0,0.00013735,2]
[337852128,1726155238427,-250.0,0.00013735,2]
[337852129,1726155239898,223.27966,0.00011164,2]
[337852130,1726155239920,150.0,0.00011164,2]
[337852131,1726155239941,126.72034,0.00011164,2]
[337852132,1726155387639,-150.57586326,0.00013712,2]
[337852133,1726155387929,-99.42413674,0.00013712,2]
[337852134,1726155442970,-150.57586326,0.00013751,2]
[337852135,1726155443197,-150.57586326,0.00013751,2]
[337852136,1726155443430,-150.57586326,0.00013751,2]
[337852137,1726155443759,-150.57586326,0.00013751,2]
[337852138,1726155505047,-150.57586326,0.00013751,2]
[337852139,1726155505310,-87.1206837,0.00013751,2]
[337852140,1726155616039,-150.57586326,0.000137,2]
[337852141,1726155636481,-150.57586326,0.0001369,2]
[337852142,1726155636707,-150.57586326,0.0001369,2]
[337852143,1726155636925,-150.57586326,0.0001369,2]
[337852144,1726155637154,-39.91241022,0.0001369,2]
[337852145,1726155647524,-150.57586326,0.00013698,2]
[337852146,1726155647761,-105.91413674,0.00013698,2]
[337852147,1726155680913,150.0,0.00011779,2]
[337852148,1726155680934,148.8,0.00011779,2]
[337852149,1726155731760,-150.57586326,0.00013689,2]
[337852150,1726155732214,-9.42413674,0.00013689,2]
[337852151,1726155804317,150.0,0.00010959,2]
[337852152,1726155804338,0.23,0.00010959,2]
[337852153,1726155814632,-150.57586326,0.00013689,2]
[337852154,1726155814850,-99.42413674,0.00013689,2]
[337852155,1726155825260,-150.0,0.00013621,2]
[337852157,1726155916470,-150.0,0.0001329,2]
[337852163,1726156037999,-150.57586326,0.00013687,2]
[337852164,1726156038482,-150.57586326,0.00013687,2]
[337852165,1726156038858,-26.84827348,0.00013687,2]
[337852172,1726156074563,251.39949522,0.00012938,2]
[337852173,1726156100287,-150.57586326,0.000137,2]
[337852174,1726156100632,-150.57586326,0.00013691,2]
[337852175,1726156101009,-99.42413674,0.00013691,2]
[337852176,1726156111391,-150.57586326,0.000137,2]
[337852177,1726156111690,-150.57586326,0.000137,2]
[337852178,1726156112103,-48.27241022,0.000137,2]
[337852179,1726156112125,-102.30345304,0.000137,2]
[337852180,1726156112288,-150.57586326,0.000137,2]
[337852181,1726156112658,-150.57586326,0.000137,2]
[337852182,1726156113235,-96.54482044,0.000137,2]
[337852183,1726156133665,-150.57586326,0.00013693,2]
[337852184,1726156133874,-99.42413674,0.00013693,2]
[337852185,1726156136465,51.15172652,0.00013691,2]
[337852186,1726156136489,150.57586326,0.00013691,2]
[337852187,1726156141781,-27.20241022,0.00013691,2]
[337852188,1726156141805,-123.37345304,0.00013692,2]
[337852189,1726156142375,-114.88654696,0.00013692,2]
[337852190,1726156171867,291.98,0.00011777,2]
[337852198,1726156231437,-398.23,0.00014003,2]
[337852199,1726156231448,-398.23,0.00014003,2]
[337852200,1726156231458,-398.23,0.00014013,2]
[337852201,1726156231467,-398.23,0.00014013,2]
[337852202,1726156231477,-398.23,0.00014013,2]
[337852203,1726156231487,-398.23,0.00014013,2]
[337852204,1726156231496,-398.23,0.00014013,2]
[337852205,1726156231505,-398.23,0.00014013,2]
[337852206,1726156231515,-398.23,0.00014013,2]
[337852207,1726156231524,-398.23,0.00014013,2]
[337852208,1726156231533,-95273.7464949,0.00014023,2]
[337852209,1726156231543,-13490.241473,0.00014034,2]
[337852210,1726156231552,-291.98,0.00014041,2]
[337852211,1726156231561,-200.0,0.000142,2]
[337852212,1726156231571,-2000.0,0.000142,2]
[337852213,1726156231584,-415.99495571,0.00014504,2]
[337852214,1726156231593,-150.0,0.00014521,2]
[337852215,1726156231602,-150.0,0.00014533,2]
[337852216,1726156231611,-150.0,0.00014547,2]
[337852217,1726156231622,-150.0,0.00014563,2]
[337852218,1726156231632,-3000.0,0.0001463,2]
[337852219,1726156231641,-3000.0,0.0001463,2]
[337852220,1726156231652,-854.78531,0.0001463,2]
[337852221,1726156231662,-150.0,0.00014657,2]
[337852222,1726156231672,-150.0,0.00014668,2]
[337852223,1726156231681,-3535.72328931,0.00014673,2]
[337852224,1726156231691,-198.66054299,0.00014674,2]
[337852225,1726156231701,-675.51,0.00014675,3]
[337852226,1726156231710,-3535.72328927,0.00014675,2]
[337852227,1726156231720,-500.0,0.00014676,2]
[337852228,1726156231729,-225.16,0.00014677,3]
[337852229,1726156231739,-3535.72328927,0.00014678,2]
[337852230,1726156231748,-150.0,0.00014679,2]
[337852231,1726156231759,-3535.72328927,0.0001468,2]
[337852232,1726156231768,-3535.72328927,0.00014682,2]
[337852233,1726156231778,-4901.094,0.00014684,2]
[337852234,1726156231787,-176.22845629,0.00014684,2]
[337852235,1726156231797,-758.52530457,0.00014684,2]
[337852236,1726156231806,-198.66054297,0.00014684,2]
[337852237,1726156231824,-3535.72328927,0.00014685,2]
[337852238,1726156231834,-3535.72328927,0.00014687,2]
[337852239,1726156231843,-758.52530456,0.00014689,2]
[337852240,1726156231852,-3535.72328927,0.00014689,2]
[337852241,1726156231861,-3535.72328927,0.00014692,2]
[337852242,1726156231870,-3535.72328927,0.00014694,2]
[337852243,1726156231880,-340.72615337,0.00014694,2]
[337852244,1726156231888,-198.66054297,0.00014694,2]
[337852245,1726156231897,-758.52530456,0.00014694,2]
[337852246,1726156231907,-302.4,0.000147,2]
[337852247,1726156231919,-7702.03988147,0.000147,2]
[337852248,1726156231928,-998.88,0.000147,2]
[337852249,1726156231937,-150.0,0.000147,2]
[337852250,1726156231946,-158.965,0.00014705,2]
[337852251,1726156231955,-2462.79192693,0.00014724,2]
[337852252,1726156231965,-1546.0,0.00014725,2]
[337852253,1726156231974,-1255.001,0.00014725,2]
[337852254,1726156231984,-624.0,0.00014725,2]
[337852255,1726156231995,-557.0,0.00014725,2]
[337852256,1726156232005,-810.0,0.00014725,2]
[337852257,1726156232014,-150.0,0.00014725,2]
[337852258,1726156232023,-931.0,0.00014725,2]
[337852259,1726156232034,-1901.0,0.00014725,2]
[337852260,1726156232043,-553.0,0.00014725,2]
[337852261,1726156232052,-248.0,0.00014725,2]
[337852262,1726156232291,-1119.0,0.00014725,2]
[337852263,1726156232314,-805.0,0.00014725,2]
[337852264,1726156232323,-1921.0,0.00014725,2]
[337852265,1726156232334,-3343.0,0.00014725,2]
[337852266,1726156232344,-150.0,0.00014725,2]
[337852267,1726156232353,-150.0,0.00014725,2]
[337852268,1726156232363,-8751.064,0.00014725,2]
[337852269,1726156232372,-150.309,0.00014725,2]
[337852270,1726156232382,-150.0,0.00014725,2]
[337852271,1726156232391,-150.0,0.00014725,2]
[337852272,1726156232400,-1145.0,0.00014725,2]
[337852273,1726156232410,-252.866,0.00014725,2]
[337852274,1726156232421,-5860.0,0.00014725,2]
[337852275,1726156232430,-1194.636,0.00014725,2]
[337852276,1726156232440,-1535.27089368,0.00014764,2]
[337852277,1726156232449,-6141.08357472,0.00014769,2]
[337852278,1726156232458,-500.0,0.00014773,2]
[337852279,1726156232468,-200.0,0.00014773,2]
[337852280,1726156232477,-500.0,0.00014773,2]
[337852281,1726156232486,-53188.04087543,0.00014773,2]
[337852282,1726156232507,-9367.06642511,0.00014773,2]
[337852283,1726156232522,-562.21440665,0.00014773,2]
[337852284,1726156232533,-2498.3477175,0.00014773,2]
[337852285,1726156232544,-1881.40812481,0.00014773,2]
[337852286,1726156232555,-4240.63132167,0.00014773,2]
[337852287,1726156232566,-6028.00135283,0.00014773,2]
[337852288,1726156232580,-563.10986677,0.00014773,2]
[337852289,1726156232607,-2226.46058193,0.00014773,2]
[337852290,1726156232616,-11729.65909636,0.00014773,2]
[337852291,1726156232629,-784.3221489,0.00014773,2]
[337852292,1726156232654,-2423.19949662,0.00014773,2]
[337852293,1726156232667,-1354.61142599,0.00014773,2]
[337852294,1726156232678,-3186.70346721,0.00014773,2]
[337852308,1726156238047,-184.08080251,0.00014521,2]
[337852310,1726156238059,-315.91919749,0.00014521,2]
[337852312,1726156238068,-379.78573306,0.00014694,2]
[337852313,1726156238077,-150.0,0.00014725,2]
[337852315,1726156238088,-919.29506945,0.00014773,2]
[337852318,1726156238109,-559.2,0.00014773,2]
[337852321,1726156238146,-1850.0,0.00014773,2]
[337852323,1726156239507,-539.44331101,0.00014773,2]
[337852324,1726156239520,-370.22629922,0.00014773,2]
[337852325,1726156239624,-407.57439968,0.00014773,2]
[337852326,1726156239639,-2709.45944996,0.00014773,2]
[337852327,1726156239649,-5373.44812788,0.00014774,2]
[337852328,1726156239660,-150.91,0.00014774,2]
[337852329,1726156239670,-1736.67106764,0.00014779,2]
[337852331,1726156239939,-1263.32893236,0.00014779,2]
[337852333,1726156239950,-3000.0,0.00014779,2]
[337852335,1726156239960,-3000.0,0.00014779,2]
[337852337,1726156239970,-3000.0,0.00014779,2]
[337852338,1726156239981,-80667.41683235,0.00014779,2]
[337852340,1726156239991,-500.0,0.00014783,2]
[337852342,1726156240001,-178.93578832,0.00014783,2]
[337852565,1726156242496,-115.85139403,0.00014783,2]
[337852567,1726156242508,-150.91,0.00014784,2]
[337852569,1726156242517,-25.58866125,0.00014784,2]
[337852614,1726156242955,-782.41133875,0.00014784,2]
[337852615,1726156242965,-151.0,0.00014784,2]
[337852618,1726156242974,-327.90281001,0.00014784,2]
[337852624,1726156243001,-855.08388499,0.00014784,2]
[337852626,1726156243010,-1182.986695,0.00014784,2]
[337852628,1726156243020,-151.0,0.00014784,2]
[337852630,1726156243029,-151.0,0.00014784,2]
[337852632,1726156243038,-151.0,0.00014784,2]
[337852633,1726156243047,-278.379902,0.00014784,2]
[337852635,1726156243056,-886.092358,0.00014784,2]
[337852637,1726156243065,-151.0,0.00014784,2]
[337852639,1726156243075,-886.092358,0.00014784,2]
[337852641,1726156243084,-460.673763,0.00014784,2]
[337852643,1726156243093,-460.673763,0.00014784,2]
[337852645,1726156243102,-460.673763,0.00014784,2]
[337852647,1726156243111,-460.673763,0.00014784,2]
[337852649,1726156243121,-22432.35272331,0.00014784,2]
[337852882,1726156245821,-3309.57676577,0.00014784,2]
[337852884,1726156245832,-44038.33174542,0.00014784,2]
[337852885,1726156245842,-4912.18150082,0.00014784,2]
[337852886,1726156245853,-46433.12669752,0.00014784,2]
[337852887,1726156245886,-3559.9489424,0.00014784,2]
[337852889,1726156245897,-4099.98465556,0.00014784,2]
[337852890,1726156245907,-48230.222358,0.00014784,2]
[337852891,1726156245916,-16800.57519262,0.00014784,2]
[337852892,1726156246010,-498.62,0.00014784,2]
[337852893,1726156246022,-997.99123952,0.00014784,2]
[337852894,1726156246034,-2763.82879255,0.00014784,2]
[337852895,1726156325687,-160.0,0.00013855,2]
[337852896,1726156367316,-150.575866,0.00013924,2]
[337852897,1726156377964,-174.48613977,0.00013823,2]
[337852898,1726156378501,-75.51386023,0.00013823,2]
[337852899,1726156389315,-150.0,0.00013832,2]
[337852902,1726156470376,150.0,0.0001112,2]
[337852903,1726156470396,150.0,0.0001112,2]
[337852904,1726156470417,150.0,0.0001112,2]
[337852905,1726156470438,50.0,0.0001112,2]
[337852906,1726156493478,254.27099637,0.0001112,2]
[337852907,1726156493500,245.72900363,0.0001112,2]
[337852908,1726156493637,500.0,0.0001112,2]
[337852909,1726156530062,150.0,0.00010959,2]
[337852910,1726156530083,5.54,0.00010959,2]
[337852911,1726156656418,150.0,0.0001176,2]
[337852912,1726156656439,144.67,0.0001176,2]
[337852914,1726156841461,-174.37,0.00013561,2]
[337852915,1726156841918,-574.88706926,0.00013561,2]
[337852916,1726156842390,-10.64293074,0.00013561,2]
[337852917,1726156842653,-239.35706926,0.00013564,2]
[337852918,1726156843120,-223.27966,0.00013564,2]
[337852919,1726156843613,-122.89327074,0.00013564,2]
[337852920,1726156875968,178.25845578,0.00011097,2]
[337852921,1726156875990,45.02120422,0.00011097,2]
[337852922,1726156927983,-150.0,0.00013285,2]
[337852923,1726156928681,150.0,0.00013266,2]
[337852925,1726157044050,150.0,0.00010959,2]
[337852926,1726157044075,6.93,0.00010959,2]
[337852929,1726157165771,150.0,0.00012999,2]
[337852930,1726157165791,150.0,0.00012999,2]
[337852931,1726157165811,150.0,0.00012999,2]
[337852932,1726157165838,53.70090105,0.00012999,2]
[337852934,1726157211003,295.13,0.0001135,2]
[337852948,1726157293646,-857.55,0.00013227,2]
[337852949,1726157293671,-504.85,0.00013227,2]
[337852950,1726157293698,-856.81,0.00013265,2]
[337852951,1726157293724,-100.0,0.00013266,2]
[337852952,1726157293748,-814.1175398,0.00013274,2]
[337852953,1726157293782,-965.07445255,0.00013274,2]
[337852954,1726157293815,-2403.72800765,0.00013274,2]
[337852955,1726157293841,-238.26,0.00013274,2]
[337852956,1726157294112,-491.33953215,0.00013274,2]
[337852957,1726157294153,-3133.3275398,0.00013274,2]
[337852958,1726157294191,-3133.3275398,0.00013274,2]
[337852959,1726157294224,-3133.3275398,0.00013274,2]
[337852960,1726157294265,-1575.27966911,0.00013274,2]
[337852961,1726157294290,-1548.95,0.00013278,2]
[337852962,1726157294316,-9.09787069,0.00013279,2]
[337852963,1726157294358,-253.30212931,0.00013279,2]
[337852964,1726157294386,-672.0,0.00013279,2]
[337852965,1726157294411,-250.0,0.00013281,2]
[337852966,1726157294436,-585.53,0.00013568,2]
[337852967,1726157294462,-585.53,0.00013571,2]
[337852968,1726157294486,-482.77,0.00013571,2]
[337852969,1726157294512,-304.19541049,0.00013575,2]
[337852970,1726157294550,-281.33458951,0.00013575,2]
[337852971,1726157294576,-585.53,0.00013578,2]
[337852972,1726157294602,-505.66,0.00013578,2]
[337852973,1726157294629,-585.53,0.00013582,2]
[337852974,1726157294655,-585.53,0.00013585,2]
[337852975,1726157294681,-585.53,0.00013589,2]
[337852976,1726157294709,-4.21295029,0.00013593,2]
[337852977,1726157294757,-581.31704971,0.00013593,2]
[337852978,1726157294782,-159.01,0.00013595,2]
[337852979,1726157294807,-872.0,0.00013596,2]
[337852980,1726157294831,-585.53,0.00013596,2]
[337852981,1726157294857,-585.53,0.000136,2]
[337852982,1726157294882,-349.94049009,0.00013603,2]
[337852988,1726157431624,-218.08,0.00013504,2]
[337852989,1726157431633,-250.0,0.00013505,2]
[337852990,1726157431642,-109.4983648,0.00013508,2]
[337852991,1726157431678,-108.5816352,0.00013508,2]
[337852992,1726157431686,-166.5592632,0.00013511,2]
[337852993,1726157431697,-51.5207368,0.00013511,2]
[337852994,1726157431706,-218.08,0.00013515,2]
[337852995,1726157431715,-19.0604332,0.00013518,2]
[337852996,1726157431791,-199.0195668,0.00013518,2]
[337852997,1726157431801,-129.57025937,0.00013522,2]
[337852998,1726157431812,-88.50974063,0.00013522,2]
[337852999,1726157431823,-218.08,0.00013526,2]
[337853000,1726157431832,-21.10750945,0.00013529,2]
[337853001,1726157431847,-196.97249055,0.00013529,2]
[337853002,1726157431856,-218.08,0.00013533,2]
[337853003,1726157431866,-161.53750945,0.00013536,2]
[337853004,1726157431887,-56.54249055,0.00013536,2]
[337853005,1726157431896,-218.08,0.0001354,2]
[337853007,1726157431906,-218.08,0.00013543,2]
[337853009,1726157431915,-218.08,0.00013547,2]
[337853011,1726157431928,-218.08,0.00013551,2]
[337853012,1726157431937,-218.08,0.00013554,2]
[337853013,1726157431947,-218.08,0.00013558,2]
[337853014,1726157431956,-218.08,0.00013561,2]
[337853015,1726157431966,-218.08,0.00013565,2]
[337853016,1726157431976,-218.08,0.00013568,2]
[337853017,1726157431985,-218.08,0.00013572,2]
[337853018,1726157431994,-295.13,0.00013614,2]
[337853019,1726157432005,-737.6,0.00013708,2]
[337853020,1726157432015,-219.0,0.0001386,2]
[337853021,1726157432024,-150.40534,0.00013924,2]
[337853022,1726157432034,-150.575866,0.00013924,2]
[337853023,1726157432043,-150.99,0.00013924,2]
[337853024,1726157432052,-219.0,0.0001399,2]
[337853025,1726157432061,-1001.70783361,0.00014,2]
[337853026,1726157432073,-600.0,0.00014,2]
[337853027,1726157432083,-162.0,0.00014,2]
[337853028,1726157432092,-1392.0,0.00014024,2]
[337853029,1726157432102,-181.45,0.00014078,2]
[337853030,1726157432111,-153.22,0.000141,2]
[337853031,1726157432120,-219.0,0.0001411,2]
[337853032,1726157432129,-329.0,0.000142,2]
[337853033,1726157432138,-212.0,0.0001424,2]
[337853034,1726157432148,-219.0,0.0001424,2]
[337853035,1726157432157,-418.6212812,0.00014247,2]
[337853036,1726157432166,-212.0,0.0001437,2]
[337853037,1726157432175,-219.0,0.0001437,2]
[337853038,1726157432185,-150.0,0.00014488,2]
[337853039,1726157432194,-313.10968126,0.00014488,2]
[337853042,1726157437611,-412.45240119,0.00014488,2]
[337853043,1726157437623,-417.70433056,0.00014488,2]
[337853044,1726157437632,-702.96069345,0.00014488,2]
[337853045,1726157437643,-948.75881762,0.00014488,2]
[337853046,1726157437652,-212.0,0.0001449,2]
[337853047,1726157437663,-219.0,0.0001449,2]
[337853048,1726157437672,-2000.0,0.000145,2]
[337853049,1726157437682,-150.0,0.0001452,2]
[337853050,1726157437691,-500.0,0.00014521,2]
[337853051,1726157437700,-150.0,0.00014573,2]
[337853052,1726157437709,-230.6938944,0.00014574,2]
[337853053,1726157437719,-1074.54728798,0.00014585,2]
[337853054,1726157437731,-425.45271202,0.00014585,2]
[337853055,1726157437740,-9397.548202,0.000146,2]
[337853056,1726157437750,-212.0,0.0001462,2]
[337853057,1726157437759,-219.0,0.0001462,2]
[337853058,1726157437769,-187.76948,0.0001464,2]
[337853059,1726157437778,-150.0,0.00014645,2]
[337853060,1726157437787,-931.0,0.00014669,2]
[337853061,1726157437796,-557.0,0.00014669,2]
[337853062,1726157437805,-810.0,0.00014669,2]
[337853063,1726157437814,-1896.0,0.00014669,2]
[337853064,1726157437824,-248.0,0.00014669,2]
[337853065,1726157437833,-805.0,0.00014669,2]
[337853066,1726157437843,-1921.0,0.00014669,2]
[337853067,1726157437852,-3343.0,0.00014669,2]
[337853068,1726157437861,-1119.0,0.00014669,2]
[337853069,1726157437870,-894.8761,0.0001467,2]
[337853070,1726157437880,-500.0,0.00014671,2]
[337853071,1726157437889,-1145.0,0.00014673,2]
[337853072,1726157437898,-9309.0,0.00014673,2]
[337853073,1726157437907,-1409.297,0.00014673,2]
[337853074,1726157437916,-150.0,0.00014673,2]
[337853075,1726157437926,-1079.0,0.00014673,2]
[337853076,1726157437939,-163.70697134,0.0001468,2]
[337853077,1726157437950,-4966.5905,0.00014684,2]
[337853078,1726157437961,-400.8773,0.00014684,2]
[337853079,1726157437971,-14230.3471,0.00014684,2]
[337853080,1726157437980,-817.3878,0.00014684,2]
[337853081,1726157437989,-4882.7075,0.00014684,2]
[337853083,1726157437998,-159.675,0.00014688,2]
[337853085,1726157438008,-2567.97508026,0.0001469,2]
[337853087,1726157438021,-511.67571096,0.0001469,2]
[337853091,1726157438044,-879.14563992,0.0001469,2]
[337853119,1726157438302,-2278.92686886,0.0001469,2]
[337853121,1726157438311,-172.529219,0.00014694,2]
[337853123,1726157438320,-272.07680128,0.00014694,2]
[337853125,1726157438331,-1420.05753133,0.00014694,2]
[337853127,1726157438340,-192.27138866,0.00014694,2]
[337853129,1726157438349,-207.18950648,0.00014694,2]
[337853131,1726157438358,-305.58,0.000147,2]
[337853133,1726157438367,-1002.22,0.000147,2]
[337853135,1726157438376,-157.28,0.00014704,2]
[337853137,1726157438385,-1546.0,0.00014726,2]
[337853139,1726157438394,-624.0,0.00014726,2]
[337853140,1726157438403,-1000.0,0.0001474,2]
[337853142,1726157438413,-1000.0,0.0001474,2]
[337853144,1726157438422,-1000.0,0.0001474,2]
[337853180,1726157438761,-1000.0,0.0001474,2]
[337853185,1726157438799,-1000.0,0.0001474,2]
[337853187,1726157438809,-376.74262985,0.0001474,2]
[337853189,1726157438818,-1000.0,0.0001474,2]
[337853191,1726157438828,-506.99583239,0.0001474,2]
[337853193,1726157438840,-493.00416761,0.0001474,2]
[337853195,1726157438849,-1000.0,0.0001474,2]
[337853197,1726157438859,-1000.0,0.0001474,2]
[337853199,1726157438868,-1000.0,0.0001474,2]
[337853201,1726157438878,-1000.0,0.0001474,2]
[337853203,1726157438887,-1000.0,0.0001474,2]
[337853205,1726157438897,-1000.0,0.0001474,2]
[337853207,1726157438906,-1000.0,0.0001474,2]
[337853209,1726157438915,-1000.0,0.0001474,2]
[337853211,1726157438924,-1000.0,0.0001474,2]
[337853213,1726157438937,-1000.0,0.0001474,2]
[337853215,1726157438946,-1000.0,0.0001474,2]
[337853217,1726157438955,-1000.0,0.0001474,2]
[337853219,1726157438964,-1000.0,0.0001474,2]